fUSD/lending_fUSD_20251030
["ID","MTS","AMOUNT","RATE_DAILY","PERIOD"]
[392714737,1761852643243,-152.39,0.00025306,2]
[392714738,1761852643252,-385.15721542,0.00025324,10]
[392714739,1761852643262,-166.926452,0.00025324,7]
[392714740,1761852643271,-151.0,0.00025325,7]
[392714741,1761852643281,-151.0,0.00025325,7]
[392714742,1761852643290,-2338.596826,0.00025325,7]
[392714743,1761852643299,-2338.596826,0.00025325,7]
[392714744,1761852643308,-151.0,0.00025325,7]
[392714745,1761852643317,-2338.596826,0.00025325,7]
[392714746,1761852643327,-839.55854,0.00025325,7]
[392714747,1761852643337,-151.0,0.00025325,7]
[392714748,1761852643346,-2338.596824,0.00025325,7]
[392714749,1761852643358,-839.55854,0.00025325,7]
[392714750,1761852643367,-191.419066,0.00025325,7]
[392714751,1761852643377,-839.55854,0.00025325,7]
[392714752,1761852643387,-839.55854,0.00025325,7]
[392714753,1761852643397,-151.661513,0.00025325,7]
[392714754,1761852643406,-151.661513,0.00025325,7]
[392714755,1761852643416,-151.661513,0.00025325,7]
[392714756,1761852643426,-151.66152,0.00025325,7]
[392714757,1761852643435,-151.0,0.00025325,7]
[392714758,1761852643444,-151.0,0.00025325,7]
[392714759,1761852643454,-299.240571,0.00025325,7]
[392714760,1761852643465,-151.0,0.00025325,7]
[392714761,1761852643475,-151.0,0.00025325,7]
[392714762,1761852643485,-403.451137,0.00025325,7]
[392714763,1761852643494,-403.451137,0.00025325,7]
[392714764,1761852643504,-403.451137,0.00025325,7]
[392714765,1761852643514,-403.451135,0.00025325,7]
[392714766,1761852643524,-151.0,0.00025325,7]
[392714767,1761852643534,-151.0,0.00025325,7]
[392714768,1761852643543,-204.444125,0.00025325,7]
[392714769,1761852643552,-816.236214,0.00025325,7]
[392714770,1761852643561,-816.236214,0.00025325,7]
[392714771,1761852643571,-816.236214,0.00025325,7]
[392714772,1761852643580,-816.236214,0.00025325,7]
[392714773,1761852643590,-2906.273263,0.00025325,7]
[392714774,1761852643600,-2906.273263,0.00025325,7]
[392714775,1761852643611,-2906.273263,0.00025325,7]
[392714776,1761852643620,-151.0,0.00025325,7]
[392714777,1761852643629,-2906.27326098,0.00025325,7]
[392714778,1761852643638,-151.0,0.00025325,7]
[392714779,1761852643648,-300.0,0.00025334,10]
[392714780,1761852643657,-713.42747159,0.00025334,2]
[392714781,1761852643666,-151.0,0.00025335,7]
[392714782,1761852643675,-271.929985,0.00025335,7]
[392714783,1761852643685,-151.0,0.00025335,7]
[392714784,1761852643694,-151.0,0.00025335,7]
[392714785,1761852643703,-151.0,0.00025335,7]
[392714786,1761852643713,-151.0,0.00025335,7]
[392714787,1761852643723,-157.64513,0.00025335,7]
[392714788,1761852643732,-151.0,0.00025335,7]
[392714789,1761852643742,-151.0,0.00025335,7]
[392714790,1761852643751,-197.963941,0.00025335,7]
[392714791,1761852643761,-151.0,0.00025335,7]
[392714792,1761852643770,-151.0,0.00025335,7]
[392714793,1761852643780,-151.0,0.00025335,7]
[392714794,1761852643789,-151.0,0.00025335,7]
[392714795,1761852643799,-195.12157,0.00025335,7]
[392714796,1761852643808,-255.691793,0.00025335,7]
[392714797,1761852643818,-187.797572,0.00025335,7]
[392714798,1761852643827,-187.797572,0.00025335,7]
[392714799,1761852643836,-340.290814,0.00025335,7]
[392714800,1761852643847,-151.0,0.00025335,7]
[392714801,1761852643858,-340.290814,0.00025335,7]
[392714802,1761852643867,-187.797572,0.00025335,7]
[392714803,1761852643877,-340.290814,0.00025335,7]
[392714804,1761852643888,-187.797573,0.00025335,7]
[392714805,1761852643897,-340.290822,0.00025335,7]
[392714806,1761852643907,-151.0,0.00025345,7]
[392714807,1761852643917,-151.0,0.00025345,7]
[392714808,1761852643927,-151.0,0.00025345,7]
[392714809,1761852643936,-151.0,0.00025345,7]
[392714810,1761852643946,-151.0,0.00025345,7]
[392714811,1761852643956,-151.0,0.00025345,7]
[392714812,1761852643965,-151.0,0.00025345,7]
[392714813,1761852643975,-151.0,0.00025345,7]
[392714814,1761852643984,-151.0,0.00025345,7]
[392714815,1761852643993,-151.0,0.00025345,7]
[392714816,1761852644002,-151.0,0.00025345,7]
[392714817,1761852644012,-151.0,0.00025345,7]
[392714818,1761852644021,-151.0,0.00025345,7]
[392714819,1761852644030,-151.0,0.00025345,7]
[392714820,1761852644039,-151.0,0.00025345,7]
[392714821,1761852644048,-259.587336,0.00025345,7]
[392714822,1761852644057,-151.0,0.00025345,7]
[392714823,1761852644067,-151.180937,0.00025345,7]
[392714824,1761852644075,-151.180937,0.00025345,7]
[392714825,1761852644087,-151.180937,0.00025345,7]
[392714826,1761852644097,-151.180945,0.00025345,7]
[392714827,1761852644107,-151.0,0.00025345,7]
[392714828,1761852644116,-415.48332,0.00025345,7]
[392714829,1761852644127,-415.48332,0.00025345,7]
[392714830,1761852644136,-415.48332,0.00025345,7]
[392714831,1761852644145,-415.483328,0.00025345,7]
[392714832,1761852644154,-500.0,0.00025354,2]
[392714833,1761852644164,-162.607049,0.00025355,7]
[392714834,1761852644173,-151.0,0.00025355,7]
[392714835,1761852644182,-253.232068,0.00025355,7]
[392714836,1761852644191,-151.758496,0.00025355,7]
[392714837,1761852644200,-155.0,0.00025364,2]
[392714838,1761852644210,-155.675,0.00025364,2]
[392714839,1761852644219,-1000.0,0.00025384,2]
[392714840,1761852644229,-3051.06140618,0.00025398,2]
[392714841,1761852644238,-287.61899177,0.00025409,2]
[392714842,1761852644248,-334.5472959,0.00025409,2]
[392714843,1761852644257,-152.39,0.00025535,2]
[392714844,1761852644267,-967.47774999,0.00025616,2]
[392714845,1761852644276,-202.30996,0.0002562,2]
[392714846,1761852644286,-640.24385345,0.00025684,2]
[392714847,1761852644295,-691.39774486,0.00025684,2]
[392714848,1761852644304,-152.39,0.00025765,2]
[392714849,1761852644313,-152.39,0.00025994,2]
[392714850,1761852644323,-1000.0,0.00026,2]
[392714851,1761852644332,-750.0,0.00026027,2]
[392714852,1761852644341,-750.0,0.00026027,2]
[392714853,1761852644351,-196.01,0.00026098,7]
[392714854,1761852644361,-3528.89660962,0.00026138,2]
[392714855,1761852644372,-3473.0,0.00026158,2]
[392714856,1761852644381,-151.0,0.00026161,7]
[392714857,1761852644390,-152.39,0.00026224,2]
[392714858,1761852644400,-663.93287602,0.00026232,2]
[392714859,1761852644410,-716.97946142,0.00026232,2]
[392714860,1761852644419,-750.0,0.00026301,2]
[392714861,1761852644430,-750.0,0.00026301,2]
[392714862,1761852644439,-1000.0,0.00026302,2]
[392714863,1761852644449,-152.39,0.00026453,2]
[392714864,1761852644458,-750.0,0.00026575,2]
[392714865,1761852644467,-750.0,0.00026575,2]
[392714866,1761852644476,-202.30996,0.0002662,2]
[392714867,1761852644485,-446.42,0.00026676,2]
[392714868,1761852644494,-152.39,0.00026683,2]
[392714869,1761852644504,-500.0,0.00026717,7]
[392714870,1761852644513,-298.26089446,0.00026778,2]
[392714871,1761852644522,-322.6107,0.00026778,2]
[392714872,1761852644532,-688.49839244,0.0002678,2]
[392714873,1761852644542,-743.50770149,0.0002678,2]
[392714874,1761852644551,-1000.0,0.000268,2]
[392714875,1761852644560,-323.4349196,0.00026843,2]
[392714876,1761852644569,-750.0,0.00026849,2]
[392714877,1761852644579,-750.0,0.00026849,2]
[392714878,1761852644588,-3051.06140618,0.00026856,2]
[392714879,1761852644598,-5516.0,0.000269,5]
[392714880,1761852644607,-500.0,0.00026904,7]
[392714881,1761852644616,-152.39,0.00026912,2]
[392714882,1761852644626,-2500.0,0.00026956,7]
[392714883,1761852644636,-300.0,0.00027038,10]
[392714884,1761852644644,-20927.5824053,0.00027039,2]
[392714885,1761852644654,-175.75,0.00027101,2]
[392714886,1761852644664,-750.0,0.00027123,2]
[392714887,1761852644673,-750.0,0.00027123,2]
[392714888,1761852644682,-152.39,0.00027142,2]
[392714889,1761852644691,-223.72,0.0002715,2]
[392714890,1761852644700,-1000.0,0.00027219,2]
[392714891,1761852644710,-500.0,0.00027259,7]
[392714892,1761852644719,-500.0,0.00027273,7]
[392714893,1761852644728,-500.0,0.000273,7]
[392714894,1761852644737,-2000.0,0.000273,2]
[392714895,1761852644746,-500.0,0.00027314,7]
[392714896,1761852644756,-850.91,0.00027321,3]
[392714897,1761852644765,-713.97283296,0.00027328,2]
[392714898,1761852644775,-880.98222737,0.00027328,2]
[392714899,1761852644784,-1475.0565674,0.00027349,2]
[392714900,1761852644793,-16975.9353437,0.00027349,2]
[392714901,1761852644803,-500.0,0.00027367,2]
[392714902,1761852644812,-150.0,0.00027369,2]
[392714903,1761852644823,-300.0,0.0002737,10]
[392714904,1761852644832,-1000.0,0.00027371,2]
[392714905,1761852644842,-151.0,0.00027371,7]
[392714906,1761852644851,-151.0,0.00027371,7]
[392714907,1761852644861,-152.39,0.00027371,2]
[392714908,1761852644870,-500.0,0.00027377,2]
[392714909,1761852644880,-4054.47607737,0.0002739,2]
[392714910,1761852644890,-8009.22579489,0.0002739,2]
[392714911,1761852644899,-3197.03547893,0.0002739,2]
[392714912,1761852644909,-500.0,0.00027396,7]
[392714913,1761852644918,-275.73692285,0.00027396,10]
[392714914,1761852644928,-151.0,0.00027397,7]
[392714915,1761852644937,-151.0,0.00027397,7]
[392714916,1761852644948,-151.0,0.00027397,7]
[392714917,1761852644958,-151.0,0.00027397,7]
[392714918,1761852644969,-151.0,0.00027397,7]
[392714919,1761852644978,-151.0,0.00027397,7]
[392714920,1761852644989,-151.0,0.00027397,7]
[392714921,1761852644999,-160.575152,0.00027397,7]
[392714922,1761852645010,-252.677834,0.00027397,7]
[392714923,1761852645019,-151.0,0.00027397,7]
[392714924,1761852645029,-151.0,0.00027397,7]
[392714925,1761852645039,-151.0,0.00027397,7]
[392714926,1761852645049,-600.0,0.00027397,2]
[392714927,1761852645059,-300.0,0.00027397,2]
[392714928,1761852645069,-750.0,0.00027397,2]
[392714929,1761852645078,-750.0,0.00027397,2]
[392714930,1761852645090,-150.71638911,0.00027397,5]
[392714931,1761852645100,-1647.63,0.000274,7]
[392714932,1761852645110,-1149.82,0.000274,7]
[392714933,1761852645120,-3814.3,0.000274,2]
[392714934,1761852645131,-3814.3,0.000274,2]
[392714935,1761852645140,-3814.3,0.000274,2]
[392714936,1761852645150,-3814.3,0.000274,2]
[392714937,1761852645160,-3814.3,0.000274,2]
[392714938,1761852645173,-198.31225313,0.000275,2]
[392714939,1761852645182,-541.73853763,0.000275,2]
[392714940,1761852645192,-3528.89660962,0.00027504,2]
[392714941,1761852645202,-177.47,0.00027517,2]
[392714942,1761852645211,-500.0,0.00027524,7]
[392714943,1761852645221,-1000.0,0.000276,2]
[392714944,1761852645231,-2500.0,0.00027601,7]
[392714945,1761852645240,-2500.0,0.00027609,7]
[392714946,1761852645250,-2500.0,0.00027618,7]
[392714947,1761852645261,-202.30996,0.0002762,2]
[392714948,1761852645270,-2500.0,0.00027627,7]
[392714949,1761852645280,-2500.0,0.00027636,7]
[392714950,1761852645290,-2500.0,0.00027645,7]
[392714951,1761852645300,-2500.0,0.00027653,7]
[392714952,1761852645310,-2500.0,0.00027662,7]
[392714953,1761852645320,-199.0,0.00027671,7]
[392714955,1761852645330,-2500.0,0.00027671,7]
[392714957,1761852645340,-750.0,0.00027671,2]
[392714959,1761852645351,-750.0,0.00027671,2]
[392714961,1761852645362,-4669.5748136,0.00027722,2]
[392714963,1761852645372,-740.38982778,0.00027876,2]
[392714964,1761852645382,-1600.0,0.000279,10]
[392714965,1761852645392,-155.0,0.000279,2]
[392714966,1761852645403,-196.01,0.00027944,7]
[392714967,1761852645412,-199.0,0.00027945,8]
[392714968,1761852645423,-750.0,0.00027945,2]
[392714969,1761852645433,-750.0,0.00027945,2]
[392714970,1761852645443,-600.0,0.00027945,2]
[392714971,1761852645452,-500.0,0.00027959,7]
[392714972,1761852645462,-500.0,0.00027963,7]
[392714973,1761852645471,-282.55,0.00028,2]
[392714974,1761852645481,-70327.46647112,0.00028,2]
[392714975,1761852645491,-242942.80830688,0.00028,2]
[392714976,1761852645501,-2164.67,0.00028,2]
[392714977,1761852645510,-1000.0,0.00028,2]
[392714978,1761852645520,-50154.20343809,0.00028,2]
[392714979,1761852645529,-4205.97950787,0.00028,2]
[392714980,1761852645539,-160.0,0.00028,2]
[392714981,1761852645548,-329.1296081,0.00028039,2]
[392714982,1761852645558,-3787.8431719,0.00028039,2]
[392714983,1761852645567,-500.0,0.00028043,7]
[392714984,1761852645578,-500.0,0.00028046,7]
[392714985,1761852645589,-924.17659165,0.00028052,2]
[392714986,1761852645598,-1000.0,0.00028137,2]
[392714987,1761852645608,-256.45268658,0.00028147,2]
[392714988,1761852645619,-1270.0,0.00028152,2]
[392714989,1761852645628,-818.0,0.00028152,2]
[392714990,1761852645638,-905.248,0.00028152,2]
[392714991,1761852645647,-1187.0,0.00028152,2]
[392714992,1761852645658,-249.594,0.00028152,2]
[392714993,1761852645668,-606.0,0.00028152,2]
[392714994,1761852645678,-825.56,0.00028152,2]
[392714995,1761852645688,-396.942,0.00028152,2]
[392714996,1761852645698,-1757.827,0.00028152,2]
[392714997,1761852645707,-999.99,0.00028203,2]
[392714998,1761852645718,-9999.99,0.00028203,2]
[392714999,1761852645728,-9999.99,0.00028203,2]
[392715000,1761852645739,-7728.06,0.00028203,2]
[392715001,1761852645748,-1777.32,0.00028203,2]
[392715002,1761852645759,-1043.61,0.00028203,2]
[392715003,1761852645768,-150.99,0.00028203,2]
[392715004,1761852645778,-199.0,0.00028219,9]
[392715005,1761852645788,-750.0,0.00028219,2]
[392715006,1761852645798,-750.0,0.00028219,2]
[392715007,1761852645808,-3051.06140618,0.00028314,2]
[392715008,1761852645818,-387.97,0.00028388,30]
[392715009,1761852645828,-500.0,0.00028416,7]
[392715010,1761852645838,-593.10486854,0.00028424,2]
[392715011,1761852645847,-199.0,0.00028493,10]
[392715012,1761852645858,-750.0,0.00028493,2]
[392715013,1761852645868,-750.0,0.00028493,2]
[392715014,1761852645877,-600.0,0.00028493,2]
[392715015,1761852645887,-1647.63,0.000285,7]
[392715016,1761852645897,-1149.82,0.000285,7]
[392715017,1761852645907,-500.0,0.00028509,7]
[392715019,1761852645917,-500.0,0.00028514,7]
[392715021,1761852645927,-190.0125,0.00028542,2]
[392715022,1761852645936,-500.0,0.00028573,7]
[392715023,1761852645946,-500.0,0.00028596,7]
[392715024,1761852645956,-202.30996,0.0002862,2]
[392715025,1761852645967,-160.7,0.00028632,2]
[392715026,1761852645977,-168.0,0.00028644,2]
[392715027,1761852645987,-1278.52041291,0.00028646,15]
[392715028,1761852645996,-1504.81660803,0.00028688,2]
[392715029,1761852646006,-13113.74106365,0.0002875,2]
[392715030,1761852646015,-199.0,0.00028767,11]
[392715031,1761852646025,-750.0,0.00028767,2]
[392715032,1761852646035,-750.0,0.00028767,2]
[392715033,1761852646045,-500.0,0.00028797,7]
[392715034,1761852646054,-1203.25,0.00028818,2]
[392715035,1761852646064,-548.57,0.00028818,2]
[392715036,1761852646074,-168.81,0.00028818,2]
[392715037,1761852646083,-414.14,0.00028818,2]
[392715038,1761852646097,-168.81,0.00028818,2]
[392715039,1761852646107,-168.81,0.00028818,2]
[392715040,1761852646117,-168.81,0.00028818,2]
[392715041,1761852646127,-168.81,0.00028818,2]
[392715042,1761852646139,-3528.89660962,0.00028869,2]
[392715043,1761852646149,-323.4349196,0.00028885,2]
[392715044,1761852646159,-16556.67840683,0.00028888,2]
[392715045,1761852646171,-2164.67,0.000289,2]
[392715046,1761852646182,-1284.0,0.00028959,2]
[392715047,1761852646192,-500.0,0.0002898,7]
[392715048,1761852646203,-156.37,0.00028994,2]
[392715049,1761852646213,-114183.10181306,0.00029,2]
[392715050,1761852646224,-1924.53111047,0.00029,2]
[392715051,1761852646235,-151.0,0.00029,31]
[392715052,1761852646245,-230.086524,0.00029,31]
[392715053,1761852646255,-151.0,0.00029,31]
[392715054,1761852646266,-151.0,0.00029,31]
[392715055,1761852646276,-151.0,0.00029,31]
[392715056,1761852646286,-151.0,0.00029,31]
[392715057,1761852646296,-151.0,0.00029,31]
[392715058,1761852646306,-297.2058,0.00029,31]
[392715059,1761852646316,-151.0,0.00029,31]
[392715060,1761852646326,-151.0,0.00029,31]
[392715061,1761852646336,-151.0,0.00029,31]
[392715062,1761852646347,-300.3673224,0.00029,2]
[392715063,1761852646360,-199.0,0.00029041,12]
[392715064,1761852646370,-750.0,0.00029041,2]
[392715065,1761852646380,-750.0,0.00029041,2]
[392715066,1761852646390,-677.41749507,0.00029041,2]
[392715067,1761852646400,-500.0,0.00029122,7]
[392715068,1761852646410,-200.0,0.00029237,2]
[392715069,1761852646420,-1100.0,0.00029315,7]
[392715070,1761852646429,-199.0,0.00029315,13]
[392715071,1761852646440,-641.35982995,0.00029315,2]
[392715072,1761852646463,-108.64017005,0.00029315,2]
[392715073,1761852646474,-430.07170639,0.00029315,2]
[392715074,1761852646486,-319.92829361,0.00029315,2]
[392715075,1761852646496,-168.0,0.00029399,2]
[392715076,1761852646506,-544.20447907,0.00029403,2]
[392715077,1761852646516,-168.0,0.00029454,2]
[392715078,1761852646526,-136.41321353,0.000295,7]
[392715079,1761852646580,-1511.21678647,0.000295,7]
[392715080,1761852646590,-1149.82,0.000295,7]
[392715081,1761852646601,-2500.0,0.000295,6]
[392715082,1761852646613,-500.0,0.00029549,7]
[392715083,1761852646622,-2300.0,0.00029589,7]
[392715084,1761852646632,-199.0,0.00029589,14]
[392715085,1761852646642,-750.0,0.00029589,2]
[392715086,1761852646652,-750.0,0.00029589,2]
[392715087,1761852646663,-168.0,0.00029619,2]
[392715088,1761852646672,-202.30996,0.0002962,2]
[392715089,1761852646682,-500.0,0.00029655,7]
[392715090,1761852646692,-168.0,0.00029765,2]
[392715091,1761852646702,-2271.288958,0.00029772,2]
[392715092,1761852646755,-779.77244818,0.00029772,2]
[392715093,1761852646765,-196.01,0.00029789,30]
[392715094,1761852646775,-355.86016182,0.00029799,7]
[392715095,1761852646787,-144.13983818,0.00029799,7]
[392715096,1761852646797,-509.90751302,0.000298,2]
[392715097,1761852646809,-535.0999998,0.000298,2]
[392715098,1761852646836,-821.16332945,0.000298,2]
[392715099,1761852646909,-151.0,0.0002488,7]
[392715100,1761852646919,-151.0,0.0002489,7]
[392715101,1761852646929,-151.0,0.000249,7]
[392715102,1761852646939,-151.0,0.000249,7]
[392715103,1761852646948,-28133.82915773,0.000298,2]
[392715104,1761852646959,-151.0,0.000298,2]
[392715105,1761852646968,-168.0,0.00029842,2]
[392715106,1761852646978,-500.0,0.00029845,7]
[392715107,1761852646988,-199.0,0.00029863,14]
[392715108,1761852646998,-750.0,0.00029863,2]
[392715109,1761852647008,-750.0,0.00029863,2]
[392715110,1761852647018,-1691.0,0.00029863,2]
[392715111,1761852647027,-62310.98331971,0.000299,2]
[392715112,1761852647036,-84456.26056672,0.000299,2]
[392715113,1761852647046,-2164.67,0.000299,2]
[392715114,1761852647056,-1000.0,0.00029926,7]
[392715115,1761852647066,-600.0,0.00029951,11]
[392715116,1761852647076,-600.0,0.00029951,11]
[392715117,1761852647086,-600.0,0.00029951,11]
[392715118,1761852647098,-600.0,0.00029951,11]
[392715119,1761852647107,-600.0,0.00029951,11]
[392715120,1761852647117,-600.0,0.00029951,11]
[392715121,1761852647127,-600.0,0.00029951,11]
[392715122,1761852647136,-600.0,0.00029951,11]
[392715123,1761852647146,-453.39415778,0.0002996,7]
[392715124,1761852647156,-500.0,0.00029977,7]
[392715125,1761852647167,-1000.0,0.0002998,5]
[392715126,1761852647177,-233.82788084,0.0002999,2]
[392715127,1761852647187,-54223.44183575,0.00029999,2]
[392715128,1761852647199,-15365.54460769,0.00029999,2]
[392715129,1761852647209,-586.9613541,0.0003,30]
[392715130,1761852647235,-10000.0,0.0003,10]
[392715131,1761852647245,-50801.61247078,0.0003,2]
[392715132,1761852647254,-200.621548,0.0003,2]
[392715133,1761852647264,-1500.0,0.0003,6]
[392715134,1761852647273,-500.0,0.00030052,7]
[392715135,1761852647282,-173.867,0.00030053,24]
[392715136,1761852647291,-1000.0,0.00030108,2]
[392715137,1761852647301,-1125.267711,0.00030135,15]
[392715138,1761852647310,-199.0,0.00030136,14]
[392715139,1761852647321,-500.0,0.00030136,2]
[392715140,1761852647331,-875.49,0.00030136,2]
[392715141,1761852647340,-500.0,0.00030136,10]
[392715142,1761852647350,-4420.37,0.00030136,2]
[392715143,1761852647361,-500.0,0.00030136,2]
[392715144,1761852647371,-500.0,0.00030136,2]
[392715145,1761852647380,-190.48720684,0.00030136,2]
[392715146,1761852647390,-689.60343967,0.00030136,2]
[392715147,1761852647399,-300.0,0.00030136,2]
[392715148,1761852647409,-300.0,0.00030136,2]
[392715149,1761852647419,-750.0,0.00030137,2]
[392715150,1761852647432,-750.0,0.00030137,2]
[392715151,1761852647714,-1100.0,0.00030137,7]
[392715152,1761852647728,-323.01474677,0.00030137,14]
[392715153,1761852647738,-181.5601338,0.00030137,14]
[392715154,1761852647747,-151.0,0.00030137,14]
[392715155,1761852647757,-500.0,0.00030137,2]
[392715156,1761852647766,-648.20682498,0.00030137,2]
[392715157,1761852647775,-500.0,0.00030137,2]
[392715158,1761852647784,-500.0,0.00030137,2]
[392715159,1761852647794,-500.0,0.00030137,2]
[392715160,1761852647803,-500.0,0.00030137,2]
[392715161,1761852647812,-168.0,0.00030165,2]
[392715162,1761852647821,-500.0,0.00030215,7]
[392715163,1761852647830,-161.0,0.00030219,2]
[392715164,1761852647839,-3528.89660962,0.00030234,2]
[392715165,1761852647848,-168.0,0.00030236,2]
[392715166,1761852647858,-168.0,0.00030244,2]
[392715167,1761852647868,-500.0,0.00030281,7]
[392715168,1761852647877,-12888.08,0.000303,7]
[392715169,1761852647886,-500.0,0.00030306,2]
[392715170,1761852647895,-500.0,0.00030306,2]
[392715171,1761852647904,-500.0,0.00030306,2]
[392715172,1761852647913,-500.0,0.00030306,2]
[392715173,1761852647930,-500.0,0.00030306,2]
[392715174,1761852647943,-500.0,0.00030306,2]
[392715175,1761852647954,-500.0,0.00030306,2]
[392715176,1761852647963,-500.0,0.00030306,2]
[392715177,1761852647973,-213.0,0.00030306,2]
[392715178,1761852647987,-200.0,0.00030306,2]
[392715179,1761852647997,-200.0,0.00030306,2]
[392715180,1761852648007,-200.0,0.00030306,2]
[392715181,1761852648018,-200.0,0.00030306,2]
[392715182,1761852648029,-200.0,0.00030306,2]
[392715183,1761852648039,-200.0,0.00030306,2]
[392715184,1761852648050,-200.0,0.00030306,2]
[392715185,1761852648059,-200.0,0.00030306,2]
[392715186,1761852648069,-200.0,0.00030306,2]
[392715187,1761852648079,-200.0,0.00030306,2]
[392715188,1761852648093,-200.0,0.00030306,2]
[392715189,1761852648103,-200.0,0.00030306,2]
[392715190,1761852648114,-200.0,0.00030306,2]
[392715191,1761852648124,-200.0,0.00030306,2]
[392715192,1761852648135,-200.0,0.00030306,2]
[392715193,1761852648145,-200.0,0.00030306,2]
[392715194,1761852648154,-200.0,0.00030306,2]
[392715195,1761852648168,-200.0,0.00030306,2]
[392715196,1761852648178,-200.0,0.00030306,2]
[392715197,1761852648188,-200.0,0.00030306,2]
[392715198,1761852648198,-200.0,0.00030306,2]
[392715199,1761852648208,-200.0,0.00030306,2]
[392715200,1761852648219,-200.0,0.00030306,2]
[392715201,1761852648229,-200.0,0.00030306,2]
[392715202,1761852648239,-200.0,0.00030306,2]
[392715203,1761852648249,-200.0,0.00030306,2]
[392715204,1761852648260,-200.0,0.00030306,2]
[392715205,1761852648269,-200.0,0.00030306,2]
[392715206,1761852648280,-200.0,0.00030306,2]
[392715207,1761852648289,-200.0,0.00030306,2]
[392715208,1761852648300,-200.0,0.00030306,2]
[392715209,1761852648311,-200.0,0.00030306,2]
[392715210,1761852648321,-200.0,0.00030306,2]
[392715211,1761852648331,-200.0,0.00030306,2]
[392715212,1761852648340,-200.0,0.00030306,2]
[392715213,1761852648351,-285.0,0.00030306,2]
[392715214,1761852648362,-800.0,0.00030306,13]
[392715215,1761852648371,-800.0,0.00030306,13]
[392715216,1761852648381,-800.0,0.00030306,13]
[392715217,1761852648391,-800.0,0.00030306,13]
[392715218,1761852648401,-800.0,0.00030306,13]
[392715219,1761852648411,-800.0,0.00030306,13]
[392715220,1761852648421,-800.0,0.00030306,13]
[392715221,1761852648431,-800.0,0.00030306,13]
[392715222,1761852648441,-800.0,0.00030306,13]
[392715223,1761852648451,-800.0,0.00030306,13]
[392715224,1761852648460,-800.0,0.00030306,13]
[392715225,1761852648471,-800.0,0.00030306,13]
[392715226,1761852648485,-800.0,0.00030306,13]
[392715227,1761852648495,-800.0,0.00030306,13]
[392715228,1761852648505,-800.0,0.00030306,13]
[392715229,1761852648516,-800.0,0.00030306,13]
[392715230,1761852648526,-800.0,0.00030306,13]
[392715231,1761852648536,-800.0,0.00030306,13]
[392715232,1761852648546,-800.0,0.00030306,13]
[392715233,1761852648556,-800.0,0.00030306,13]
[392715234,1761852648566,-800.0,0.00030306,13]
[392715235,1761852648576,-800.0,0.00030306,13]
[392715236,1761852648586,-800.0,0.00030306,13]
[392715237,1761852648596,-800.0,0.00030306,13]
[392715238,1761852648606,-800.0,0.00030306,13]
[392715239,1761852648616,-800.0,0.00030306,13]
[392715240,1761852648626,-800.0,0.00030306,13]
[392715241,1761852648636,-800.0,0.00030306,13]
[392715242,1761852648647,-800.0,0.00030306,13]
[392715243,1761852648657,-800.0,0.00030306,13]